{"text_format":"3","workbook":"xlsx","n_sheets":1,"sheets":["Báo cáo chi phí"],"not_rendered":{"images":2,"defined_names":12},"read":"whole","date_system":"1900"}

{"sheet":"Báo cáo chi phí","index":0,"n_rows":24,"n_cols":13,"rows_kept":24,"merged":[[3,2,3,3],[3,5,3,6],[3,9,3,10],[4,2,4,3],[4,5,4,6],[4,9,4,10],[5,2,5,3],[5,5,5,6],[5,9,5,10],[6,2,6,3],[6,5,6,6],[6,9,6,10],[7,9,7,10]]}
[null,"BÁO CÁO CHI PHÍ"]
[null,"CONTOSO, LTD"]
[null,"123 South Main Street, North Buffalo, NY 12345"]
[null,"ĐIỆN THOẠI",4255550121,null,"TÊN","Kim Abercrombie",null,null,"MỤC ĐÍCH","Hội thảo bán hàng hàng năm",null,"GIÁ TÍNH THEO QUÃNG ĐƯỜNG",{"v":14000,"d":"14,000.00 ₫/dặm"}]
[null,"FAX",4255550122,null,"PHÒNG BAN","Bán hàng",null,null,"BẮT ĐẦU",{"$f":"IFERROR(MIN(Chi_phí[NGÀY]),\"\")","v":"2018-06-04"},null,"GIÁ BỮA ĂN",{"v":840000,"d":"840,000.00 ₫/ngày"}]
[null,"EMAIL","info@contoso.com",null,"VỊ TRÍ","Giám đốc điều hành",null,null,"KẾT THÚC",{"$f":"IFERROR(MAX(Chi_phí[NGÀY]),\"\")","v":"2018-07-04"},null,"GIÁ KHÁCH SẠN",{"v":5600000,"d":"5,600,000.00 ₫/晚"}]
[null,"WEB","www.contoso.com",null,"NGƯỜI QUẢN LÝ","Michael Tucker",null,null,"NGƯỜI LẬP BẢNG","Kim Abercrombie",null,"PHÍ ĐIỆN THOẠI",{"v":280000,"d":"280,000.00 ₫/ngày"}]
[{"$nulls":8},"NGƯỜI PHÊ DUYỆT","Michael Tucker",null,"KHÁC GIÁ",{"v":1400000,"d":"1,400,000.00 ₫/ngày"}]
[]
[null,"NGÀY","TÀI KHOẢN","MÔ TẢ","KHÁCH SẠN","ĐI LẠI","ĂN UỐNG","ĐIỆN THOẠI","KHÁC","CHỈ SỐ BẮT ĐẦU \nĐỒNG HỒ ĐO QUÃNG ĐƯỜNG","CHỈ SỐ KẾT THÚC \nĐỒNG HỒ ĐO QUÃNG ĐƯỜNG","QUÃNG ĐƯỜNG: \nTỔNG","TỔNG "]
[null,{"$f":"TODAY()","v":"2018-06-04"},"Bán hàng","Quãng đường",{"$nulls":4},{"v":1400000,"d":"1,400,000.00 ₫"},{"v":11378.5,"d":"11,378.5 dặm"},{"v":11456.2,"d":"11,456.2 dặm"},{"$f":"IF(COUNTA(Chi_phí[[#This Row],[CHỈ SỐ BẮT ĐẦU \nĐỒNG HỒ ĐO QUÃNG ĐƯỜNG]:[CHỈ SỐ KẾT THÚC \nĐỒNG HỒ ĐO QUÃNG ĐƯỜNG]])=2,(Chi_phí[[#This Row],[CHỈ SỐ KẾT THÚC \nĐỒNG HỒ ĐO QUÃNG ĐƯỜNG]]-Chi_phí[[#This Row],[CHỈ SỐ BẮT ĐẦU \nĐỒNG HỒ ĐO QUÃNG ĐƯỜNG]])*Giá_tính_theo_quãng_đường,\"\")","v":{"v":1087800.0000000102,"d":"1,087,800.00 ₫"}},{"$f":"IF(COUNTA(Chi_phí[[#This Row],[NGÀY]:[CHỈ SỐ KẾT THÚC \nĐỒNG HỒ ĐO QUÃNG ĐƯỜNG]])=0,\"\",SUM(Chi_phí[[#This Row],[KHÁCH SẠN]:[ĐI LẠI]],Chi_phí[[#This Row],[ĂN UỐNG]:[KHÁC]],((Chi_phí[[#This Row],[CHỈ SỐ KẾT THÚC \nĐỒNG HỒ ĐO QUÃNG ĐƯỜNG]]-Chi_phí[[#This Row],[CHỈ SỐ BẮT ĐẦU \nĐỒNG HỒ ĐO QUÃNG ĐƯỜNG]])*(Giá_tính_theo_quãng_đường))))","v":{"v":2487800.0000000102,"d":"2,487,800.00 ₫"}}]
[null,{"$f":"TODAY()+30","v":"2018-07-04"},"Bán hàng","Quy ước",{"v":12460000,"d":"12,460,000.00 ₫"},{"v":6300000,"d":"6,300,000.00 ₫"},{"v":560000,"d":"560,000.00 ₫"},null,{"v":140000,"d":"140,000.00 ₫"},{"v":11500,"d":"11,500.0 dặm"},{"v":11560,"d":"11,560.0 dặm"},{"$f":"IF(COUNTA(Chi_phí[[#This Row],[CHỈ SỐ BẮT ĐẦU \nĐỒNG HỒ ĐO QUÃNG ĐƯỜNG]:[CHỈ SỐ KẾT THÚC \nĐỒNG HỒ ĐO QUÃNG ĐƯỜNG]])=2,(Chi_phí[[#This Row],[CHỈ SỐ KẾT THÚC \nĐỒNG HỒ ĐO QUÃNG ĐƯỜNG]]-Chi_phí[[#This Row],[CHỈ SỐ BẮT ĐẦU \nĐỒNG HỒ ĐO QUÃNG ĐƯỜNG]])*Giá_tính_theo_quãng_đường,\"\")","v":{"v":840000,"d":"840,000.00 ₫"}},{"$f":"IF(COUNTA(Chi_phí[[#This Row],[NGÀY]:[CHỈ SỐ KẾT THÚC \nĐỒNG HỒ ĐO QUÃNG ĐƯỜNG]])=0,\"\",SUM(Chi_phí[[#This Row],[KHÁCH SẠN]:[ĐI LẠI]],Chi_phí[[#This Row],[ĂN UỐNG]:[KHÁC]],((Chi_phí[[#This Row],[CHỈ SỐ KẾT THÚC \nĐỒNG HỒ ĐO QUÃNG ĐƯỜNG]]-Chi_phí[[#This Row],[CHỈ SỐ BẮT ĐẦU \nĐỒNG HỒ ĐO QUÃNG ĐƯỜNG]])*(Giá_tính_theo_quãng_đường))))","v":{"v":20300000,"d":"20,300,000.00 ₫"}}]
[{"$nulls":11},{"$f":"IF(COUNTA(Chi_phí[[#This Row],[CHỈ SỐ BẮT ĐẦU \nĐỒNG HỒ ĐO QUÃNG ĐƯỜNG]:[CHỈ SỐ KẾT THÚC \nĐỒNG HỒ ĐO QUÃNG ĐƯỜNG]])=2,(Chi_phí[[#This Row],[CHỈ SỐ KẾT THÚC \nĐỒNG HỒ ĐO QUÃNG ĐƯỜNG]]-Chi_phí[[#This Row],[CHỈ SỐ BẮT ĐẦU \nĐỒNG HỒ ĐO QUÃNG ĐƯỜNG]])*Giá_tính_theo_quãng_đường,\"\")","v":""},{"$f":"IF(COUNTA(Chi_phí[[#This Row],[NGÀY]:[CHỈ SỐ KẾT THÚC \nĐỒNG HỒ ĐO QUÃNG ĐƯỜNG]])=0,\"\",SUM(Chi_phí[[#This Row],[KHÁCH SẠN]:[ĐI LẠI]],Chi_phí[[#This Row],[ĂN UỐNG]:[KHÁC]],((Chi_phí[[#This Row],[CHỈ SỐ KẾT THÚC \nĐỒNG HỒ ĐO QUÃNG ĐƯỜNG]]-Chi_phí[[#This Row],[CHỈ SỐ BẮT ĐẦU \nĐỒNG HỒ ĐO QUÃNG ĐƯỜNG]])*(Giá_tính_theo_quãng_đường))))","v":""}]
[{"$nulls":11},{"$f":"IF(COUNTA(Chi_phí[[#This Row],[CHỈ SỐ BẮT ĐẦU \nĐỒNG HỒ ĐO QUÃNG ĐƯỜNG]:[CHỈ SỐ KẾT THÚC \nĐỒNG HỒ ĐO QUÃNG ĐƯỜNG]])=2,(Chi_phí[[#This Row],[CHỈ SỐ KẾT THÚC \nĐỒNG HỒ ĐO QUÃNG ĐƯỜNG]]-Chi_phí[[#This Row],[CHỈ SỐ BẮT ĐẦU \nĐỒNG HỒ ĐO QUÃNG ĐƯỜNG]])*Giá_tính_theo_quãng_đường,\"\")","v":""},{"$f":"IF(COUNTA(Chi_phí[[#This Row],[NGÀY]:[CHỈ SỐ KẾT THÚC \nĐỒNG HỒ ĐO QUÃNG ĐƯỜNG]])=0,\"\",SUM(Chi_phí[[#This Row],[KHÁCH SẠN]:[ĐI LẠI]],Chi_phí[[#This Row],[ĂN UỐNG]:[KHÁC]],((Chi_phí[[#This Row],[CHỈ SỐ KẾT THÚC \nĐỒNG HỒ ĐO QUÃNG ĐƯỜNG]]-Chi_phí[[#This Row],[CHỈ SỐ BẮT ĐẦU \nĐỒNG HỒ ĐO QUÃNG ĐƯỜNG]])*(Giá_tính_theo_quãng_đường))))","v":""}]
[{"$nulls":11},{"$f":"IF(COUNTA(Chi_phí[[#This Row],[CHỈ SỐ BẮT ĐẦU \nĐỒNG HỒ ĐO QUÃNG ĐƯỜNG]:[CHỈ SỐ KẾT THÚC \nĐỒNG HỒ ĐO QUÃNG ĐƯỜNG]])=2,(Chi_phí[[#This Row],[CHỈ SỐ KẾT THÚC \nĐỒNG HỒ ĐO QUÃNG ĐƯỜNG]]-Chi_phí[[#This Row],[CHỈ SỐ BẮT ĐẦU \nĐỒNG HỒ ĐO QUÃNG ĐƯỜNG]])*Giá_tính_theo_quãng_đường,\"\")","v":""},{"$f":"IF(COUNTA(Chi_phí[[#This Row],[NGÀY]:[CHỈ SỐ KẾT THÚC \nĐỒNG HỒ ĐO QUÃNG ĐƯỜNG]])=0,\"\",SUM(Chi_phí[[#This Row],[KHÁCH SẠN]:[ĐI LẠI]],Chi_phí[[#This Row],[ĂN UỐNG]:[KHÁC]],((Chi_phí[[#This Row],[CHỈ SỐ KẾT THÚC \nĐỒNG HỒ ĐO QUÃNG ĐƯỜNG]]-Chi_phí[[#This Row],[CHỈ SỐ BẮT ĐẦU \nĐỒNG HỒ ĐO QUÃNG ĐƯỜNG]])*(Giá_tính_theo_quãng_đường))))","v":""}]
[{"$nulls":11},{"$f":"IF(COUNTA(Chi_phí[[#This Row],[CHỈ SỐ BẮT ĐẦU \nĐỒNG HỒ ĐO QUÃNG ĐƯỜNG]:[CHỈ SỐ KẾT THÚC \nĐỒNG HỒ ĐO QUÃNG ĐƯỜNG]])=2,(Chi_phí[[#This Row],[CHỈ SỐ KẾT THÚC \nĐỒNG HỒ ĐO QUÃNG ĐƯỜNG]]-Chi_phí[[#This Row],[CHỈ SỐ BẮT ĐẦU \nĐỒNG HỒ ĐO QUÃNG ĐƯỜNG]])*Giá_tính_theo_quãng_đường,\"\")","v":""},{"$f":"IF(COUNTA(Chi_phí[[#This Row],[NGÀY]:[CHỈ SỐ KẾT THÚC \nĐỒNG HỒ ĐO QUÃNG ĐƯỜNG]])=0,\"\",SUM(Chi_phí[[#This Row],[KHÁCH SẠN]:[ĐI LẠI]],Chi_phí[[#This Row],[ĂN UỐNG]:[KHÁC]],((Chi_phí[[#This Row],[CHỈ SỐ KẾT THÚC \nĐỒNG HỒ ĐO QUÃNG ĐƯỜNG]]-Chi_phí[[#This Row],[CHỈ SỐ BẮT ĐẦU \nĐỒNG HỒ ĐO QUÃNG ĐƯỜNG]])*(Giá_tính_theo_quãng_đường))))","v":""}]
[{"$nulls":11},{"$f":"IF(COUNTA(Chi_phí[[#This Row],[CHỈ SỐ BẮT ĐẦU \nĐỒNG HỒ ĐO QUÃNG ĐƯỜNG]:[CHỈ SỐ KẾT THÚC \nĐỒNG HỒ ĐO QUÃNG ĐƯỜNG]])=2,(Chi_phí[[#This Row],[CHỈ SỐ KẾT THÚC \nĐỒNG HỒ ĐO QUÃNG ĐƯỜNG]]-Chi_phí[[#This Row],[CHỈ SỐ BẮT ĐẦU \nĐỒNG HỒ ĐO QUÃNG ĐƯỜNG]])*Giá_tính_theo_quãng_đường,\"\")","v":""},{"$f":"IF(COUNTA(Chi_phí[[#This Row],[NGÀY]:[CHỈ SỐ KẾT THÚC \nĐỒNG HỒ ĐO QUÃNG ĐƯỜNG]])=0,\"\",SUM(Chi_phí[[#This Row],[KHÁCH SẠN]:[ĐI LẠI]],Chi_phí[[#This Row],[ĂN UỐNG]:[KHÁC]],((Chi_phí[[#This Row],[CHỈ SỐ KẾT THÚC \nĐỒNG HỒ ĐO QUÃNG ĐƯỜNG]]-Chi_phí[[#This Row],[CHỈ SỐ BẮT ĐẦU \nĐỒNG HỒ ĐO QUÃNG ĐƯỜNG]])*(Giá_tính_theo_quãng_đường))))","v":""}]
[{"$nulls":11},{"$f":"IF(COUNTA(Chi_phí[[#This Row],[CHỈ SỐ BẮT ĐẦU \nĐỒNG HỒ ĐO QUÃNG ĐƯỜNG]:[CHỈ SỐ KẾT THÚC \nĐỒNG HỒ ĐO QUÃNG ĐƯỜNG]])=2,(Chi_phí[[#This Row],[CHỈ SỐ KẾT THÚC \nĐỒNG HỒ ĐO QUÃNG ĐƯỜNG]]-Chi_phí[[#This Row],[CHỈ SỐ BẮT ĐẦU \nĐỒNG HỒ ĐO QUÃNG ĐƯỜNG]])*Giá_tính_theo_quãng_đường,\"\")","v":""},{"$f":"IF(COUNTA(Chi_phí[[#This Row],[NGÀY]:[CHỈ SỐ KẾT THÚC \nĐỒNG HỒ ĐO QUÃNG ĐƯỜNG]])=0,\"\",SUM(Chi_phí[[#This Row],[KHÁCH SẠN]:[ĐI LẠI]],Chi_phí[[#This Row],[ĂN UỐNG]:[KHÁC]],((Chi_phí[[#This Row],[CHỈ SỐ KẾT THÚC \nĐỒNG HỒ ĐO QUÃNG ĐƯỜNG]]-Chi_phí[[#This Row],[CHỈ SỐ BẮT ĐẦU \nĐỒNG HỒ ĐO QUÃNG ĐƯỜNG]])*(Giá_tính_theo_quãng_đường))))","v":""}]
[{"$nulls":11},{"$f":"IF(COUNTA(Chi_phí[[#This Row],[CHỈ SỐ BẮT ĐẦU \nĐỒNG HỒ ĐO QUÃNG ĐƯỜNG]:[CHỈ SỐ KẾT THÚC \nĐỒNG HỒ ĐO QUÃNG ĐƯỜNG]])=2,(Chi_phí[[#This Row],[CHỈ SỐ KẾT THÚC \nĐỒNG HỒ ĐO QUÃNG ĐƯỜNG]]-Chi_phí[[#This Row],[CHỈ SỐ BẮT ĐẦU \nĐỒNG HỒ ĐO QUÃNG ĐƯỜNG]])*Giá_tính_theo_quãng_đường,\"\")","v":""},{"$f":"IF(COUNTA(Chi_phí[[#This Row],[NGÀY]:[CHỈ SỐ KẾT THÚC \nĐỒNG HỒ ĐO QUÃNG ĐƯỜNG]])=0,\"\",SUM(Chi_phí[[#This Row],[KHÁCH SẠN]:[ĐI LẠI]],Chi_phí[[#This Row],[ĂN UỐNG]:[KHÁC]],((Chi_phí[[#This Row],[CHỈ SỐ KẾT THÚC \nĐỒNG HỒ ĐO QUÃNG ĐƯỜNG]]-Chi_phí[[#This Row],[CHỈ SỐ BẮT ĐẦU \nĐỒNG HỒ ĐO QUÃNG ĐƯỜNG]])*(Giá_tính_theo_quãng_đường))))","v":""}]
[{"$nulls":11},{"$f":"IF(COUNTA(Chi_phí[[#This Row],[CHỈ SỐ BẮT ĐẦU \nĐỒNG HỒ ĐO QUÃNG ĐƯỜNG]:[CHỈ SỐ KẾT THÚC \nĐỒNG HỒ ĐO QUÃNG ĐƯỜNG]])=2,(Chi_phí[[#This Row],[CHỈ SỐ KẾT THÚC \nĐỒNG HỒ ĐO QUÃNG ĐƯỜNG]]-Chi_phí[[#This Row],[CHỈ SỐ BẮT ĐẦU \nĐỒNG HỒ ĐO QUÃNG ĐƯỜNG]])*Giá_tính_theo_quãng_đường,\"\")","v":""},{"$f":"IF(COUNTA(Chi_phí[[#This Row],[NGÀY]:[CHỈ SỐ KẾT THÚC \nĐỒNG HỒ ĐO QUÃNG ĐƯỜNG]])=0,\"\",SUM(Chi_phí[[#This Row],[KHÁCH SẠN]:[ĐI LẠI]],Chi_phí[[#This Row],[ĂN UỐNG]:[KHÁC]],((Chi_phí[[#This Row],[CHỈ SỐ KẾT THÚC \nĐỒNG HỒ ĐO QUÃNG ĐƯỜNG]]-Chi_phí[[#This Row],[CHỈ SỐ BẮT ĐẦU \nĐỒNG HỒ ĐO QUÃNG ĐƯỜNG]])*(Giá_tính_theo_quãng_đường))))","v":""}]
[{"$nulls":11},{"$f":"IF(COUNTA(Chi_phí[[#This Row],[CHỈ SỐ BẮT ĐẦU \nĐỒNG HỒ ĐO QUÃNG ĐƯỜNG]:[CHỈ SỐ KẾT THÚC \nĐỒNG HỒ ĐO QUÃNG ĐƯỜNG]])=2,(Chi_phí[[#This Row],[CHỈ SỐ KẾT THÚC \nĐỒNG HỒ ĐO QUÃNG ĐƯỜNG]]-Chi_phí[[#This Row],[CHỈ SỐ BẮT ĐẦU \nĐỒNG HỒ ĐO QUÃNG ĐƯỜNG]])*Giá_tính_theo_quãng_đường,\"\")","v":""},{"$f":"IF(COUNTA(Chi_phí[[#This Row],[NGÀY]:[CHỈ SỐ KẾT THÚC \nĐỒNG HỒ ĐO QUÃNG ĐƯỜNG]])=0,\"\",SUM(Chi_phí[[#This Row],[KHÁCH SẠN]:[ĐI LẠI]],Chi_phí[[#This Row],[ĂN UỐNG]:[KHÁC]],((Chi_phí[[#This Row],[CHỈ SỐ KẾT THÚC \nĐỒNG HỒ ĐO QUÃNG ĐƯỜNG]]-Chi_phí[[#This Row],[CHỈ SỐ BẮT ĐẦU \nĐỒNG HỒ ĐO QUÃNG ĐƯỜNG]])*(Giá_tính_theo_quãng_đường))))","v":""}]
[null,"TỔNG",null,null,{"$f":"SUBTOTAL(109,Chi_phí[KHÁCH SẠN])","v":{"v":12460000,"d":"12,460,000.00 ₫"}},{"$f":"SUBTOTAL(109,Chi_phí[ĐI LẠI])","v":{"v":6300000,"d":"6,300,000.00 ₫"}},{"$f":"SUBTOTAL(109,Chi_phí[ĂN UỐNG])","v":{"v":560000,"d":"560,000.00 ₫"}},{"$f":"SUBTOTAL(109,Chi_phí[ĐIỆN THOẠI])","v":0},{"$f":"SUBTOTAL(109,Chi_phí[KHÁC])","v":{"v":1540000,"d":"1,540,000.00 ₫"}},{"$nulls":3},{"$f":"SUBTOTAL(109,Chi_phí[[TỔNG ]])","v":{"v":22787800.00000001,"d":"22,787,800.00 ₫"}}]
[{"$nulls":11},"TẠM ỨNG",{"v":0,"d":"0.00 ₫"}]
[{"$nulls":11},"TỔNG",{"$f":"Chi_phí[[#Totals],[TỔNG ]]-Tạm_ứng","v":{"v":22787800.00000001,"d":"22,787,800.00 ₫"}}]